bitfinex-derivatives/quotes_SOLF0:USTF0_20250329
["timestamp","ask_amount","ask_price","bid_price","bid_amount"]
[1743217450235,36.45030212,127.17,127.08,34.06]
[1743217450741,0.0502785,127.14,127.11,0.05232481]
[1743217451442,7.9193785,127.14,127.11,0.05232481]
[1743217451650,0.0502785,127.14,127.11,215.39820899]
[1743217451946,36.45030212,127.13,127.09,269.18235523]
[1743217452132,36.45030212,127.12,127.09,269.18235523]
[1743217452528,34.0,127.13,127.09,269.18235523]
[1743217452732,7.8714,127.11,127.09,269.18235523]
[1743217452932,7.8714,127.11,127.1,0.05293497]
[1743217453236,7.92545495,127.11,127.1,0.05293497]
[1743217453942,0.05405495,127.11,127.1,0.05293497]
[1743217454745,7.92495495,127.11,127.1,0.05293497]
[1743217458043,7.92495495,127.11,127.1,3.497e-05]
[1743217460944,41.50495495,127.11,127.1,3.497e-05]
[1743217461952,7.8759,127.03,127.02,3.9695]
[1743217462153,36.45030212,127.08,126.99,33.54]
[1743217462346,36.45030212,127.08,126.99,37.8435]
[1743217462550,7.8751,127.05,126.99,45.7218]
[1743217463151,0.06056499,127.03,127.01,0.05109858]
[1743217463353,33.58,127.11,127.01,36.45030212]
[1743217463860,7.8724,127.09,127.01,36.45030212]
[1743217464051,7.8724,127.09,127.03,36.45030212]
[1743217464254,7.8724,127.09,127.04,33.48]
[1743217464455,0.0580336,127.07,127.05,0.05265123]
[1743217465667,33.92,127.08,127.05,0.05265123]
[1743217465867,20.7268,127.08,127.05,36.50295335]
[1743217466059,10.76582777,127.12,127.06,7.8736]
[1743217466357,10.76582777,127.12,127.06,4.0765]
[1743217466560,10.76582777,127.12,127.08,7.8723]
[1743217466756,0.03693968,127.1,127.09,69.81030212]
[1743217466956,10.76582777,127.12,127.09,69.81030212]
[1743217467260,4.17142777,127.12,127.09,69.81030212]
[1743217467460,32.29748333,127.13,127.09,69.81030212]
[1743217467668,32.29748333,127.13,127.11,36.45030212]
[1743217467669,19.10848333,127.13,127.11,36.45030212]
[1743217467875,3.62188333,127.13,127.11,36.45030212]
[1743217468162,3.62188333,127.12,127.11,36.50999112]
[1743217468364,3.62188333,127.12,127.11,44.38089112]
[1743217468559,133.13936383,127.13,127.11,44.36999112]
[1743217468764,133.13936383,127.13,127.12,7.8703]
[1743217468960,133.13936383,127.13,127.11,0.059689]
[1743217469162,133.13936383,127.13,127.12,36.45030212]
[1743217469566,133.13936383,127.13,127.12,44.32060212]
[1743217470066,133.13936383,127.13,127.12,52.18060212]
[1743217470566,129.18993332,127.15,127.14,7.8691]
[1743217470870,129.18993332,127.15,127.14,63.54474483]
[1743217471364,874.702307,127.19,127.14,63.54474483]
[1743217471765,874.702307,127.19,127.15,0.05082939]
[1743217472166,866.836307,127.19,127.15,0.05082939]
[1743217472669,7.8676,127.17,127.15,0.05082939]
[1743217474773,698.43499358,127.19,127.15,0.05082939]
[1743217474774,7.8668,127.18,127.15,0.05082939]
[1743217477680,706.30119358,127.19,127.15,7.91912939]
[1743217477973,706.30119358,127.19,127.15,0.05082939]
[1743217478476,28.84478238,127.18,127.15,0.05082939]
[1743217478771,28.84478238,127.18,127.17,7.8672]
[1743217478974,297.9848784,127.19,127.16,22.43564483]
[1743217479177,82.84441842,127.19,127.18,22.43564483]
[1743217479377,45.98869792,127.19,127.18,55.29564483]
[1743217479575,61.52,127.2,127.19,7.866]
[1743217479975,120.79598557,127.22,127.21,7.8647]
[1743217480182,83.28408557,127.22,127.21,30.30034483]
[1743217480480,83.28408557,127.22,127.21,38.16034483]
[1743217480870,66.56258557,127.22,127.21,38.16034483]
[1743217481071,19.41128557,127.22,127.21,38.16034483]
[1743217481270,2.62038557,127.22,127.21,38.16034483]
[1743217481473,2.62038557,127.22,127.21,7.8647]
[1743217481674,269.30704096,127.26,127.23,7.8635]
[1743217481972,269.30704096,127.26,127.23,40.7035]
[1743217481973,277.58704096,127.26,127.23,40.7035]
[1743217482172,8.28,127.26,127.23,40.7035]
[1743217482480,8.28,127.26,127.23,32.84]
[1743217482675,8.28,127.26,127.25,22.43564483]
[1743217482879,29.46,127.29,127.27,22.43564483]
[1743217483081,29.46,127.29,127.28,40.7004]
[1743217484574,29.46,127.29,127.28,32.84]
[1743217485274,29.46,127.29,127.28,32.74]
[1743217485582,45.18,127.29,127.27,0.05882471]
[1743217485776,45.18,127.29,127.17,259.36]
[1743217485978,45.23578432,127.29,127.24,32.74]
[1743217486383,7.8614,127.27,127.24,32.74]
[1743217486583,45.23578432,127.29,127.24,32.74]
[1743217486974,7.861,127.28,127.25,0.05544034]
[1743217487176,45.23578432,127.29,127.25,0.05544034]
[1743217487376,7.8605,127.28,127.25,0.05544034]
[1743217487876,7.8652,127.21,127.17,7.8668]
[1743217488091,22.43564483,127.26,127.17,32.74]
[1743217488683,38.15564483,127.26,127.17,32.74]
[1743217488986,22.43564483,127.23,127.21,0.05668354]
[1743217489181,22.43564483,127.23,127.17,32.74]
[1743217489381,38.15564483,127.23,127.17,32.74]
[1743217490286,7.92142516,127.21,127.19,0.05206746]
[1743217490580,0.05612516,127.21,127.19,0.05206746]
[1743217490785,15.77612516,127.21,127.19,0.05206746]
[1743217491587,23.64132516,127.21,127.19,0.05206746]
[1743217491788,15.77612516,127.21,127.19,0.05206746]
[1743217492886,0.05612516,127.21,127.19,0.05206746]
[1743217493087,0.05612516,127.21,127.2,32.66]
[1743217496893,0.05612516,127.21,127.2,40.5254]
[1743217498386,0.05612516,127.21,127.19,0.05206746]
[1743217498592,0.05612516,127.21,127.19,32.53206746]
[1743217498984,0.05612516,127.21,127.19,40.39766746]
[1743217499186,0.05612516,127.21,127.19,68.98604135]
[1743217499791,0.05612516,127.21,127.2,7.8654]
[1743217500390,4.181,127.29,127.24,7.8627]
[1743217500586,4.181,127.29,127.25,32.42]
[1743217500783,19.901,127.29,127.25,32.42]
[1743217501191,15.72,127.29,127.25,32.42]
[1743217501496,7.8616,127.27,127.25,32.42]
[1743217501796,7.861,127.27,127.26,0.05087795]
[1743217501992,7.861,127.27,127.25,32.42]
[1743217501993,15.72,127.27,127.25,32.42]
[1743217502395,7.8617,127.26,127.25,32.42]
[1743217502590,7.8617,127.26,127.2,36.45397389]
[1743217502787,15.72,127.26,127.22,32.36]
[1743217502985,7.863,127.24,127.23,0.05059127]
[1743217504002,7.91762999,127.25,127.23,0.05059127]
[1743217504297,0.05512999,127.25,127.23,0.05059127]
[1743217504897,0.05512999,127.25,127.23,7.91379127]
[1743217505094,0.05512999,127.25,127.23,0.05059127]
[1743217505500,29.42,127.28,127.24,36.45397389]
[1743217505798,29.42,127.28,127.27,36.45397389]
[1743217506194,29.42,127.28,127.27,44.31497389]
[1743217506904,0.04961719,127.29,127.28,7.8604]
[1743217507096,10.87,127.32,127.28,32.36]
[1743217507297,10.87,127.32,127.3,36.45397389]
[1743217507498,10.87,127.32,127.31,32.34]
[1743217508002,10.87,127.32,127.31,40.1986]
[1743217509610,0.05143598,127.33,127.31,32.34]
[1743217510311,0.05143598,127.33,127.31,40.1985]
[1743217510906,0.05143598,127.33,127.32,7.8579]
[1743217512105,0.05143598,127.33,127.31,32.34]
[1743217513706,0.05143598,127.33,127.31,54.72024441]
[1743217514112,0.05143598,127.33,127.31,32.34]
[1743217515008,0.05143598,127.33,127.31,54.72024441]
[1743217515308,0.05143598,127.33,127.32,7.8579]
[1743217515505,10.86,127.36,127.31,54.72024441]
[1743217515703,10.86,127.36,127.34,7.8563]
[1743217515911,10.86,127.36,127.35,32.06]
[1743217516807,4.3082,127.37,127.35,39.9159]
[1743217517004,7.854,127.39,127.35,54.44024441]
[1743217517411,8.0396,127.42,127.36,0.05652063]
[1743217517610,7.8541,127.39,127.36,0.05652063]
[1743217518509,7.8541,127.39,127.36,7.91202063]
[1743217518911,7.8544,127.38,127.36,0.05652063]
[1743217519109,78.07984441,127.42,127.31,22.38024441]
[1743217519410,22.38024441,127.4,127.31,31.94]
[1743217519614,22.38024441,127.4,127.31,39.7982]
[1743217519809,15.72,127.4,127.31,31.94]
[1743217520113,7.8552,127.37,127.34,7.8565]
[1743217520312,7.8552,127.37,127.35,31.94]
[1743217520610,15.72,127.37,127.35,31.94]
[1743217521410,10.85,127.38,127.35,31.94]
[1743217521610,26.57,127.38,127.35,31.94]
[1743217522007,34.4246,127.38,127.35,31.94]
[1743217523007,10.85,127.38,127.37,22.38024441]
[1743217523213,10.90714165,127.38,127.37,22.38024441]
[1743217523914,0.05714165,127.38,127.37,30.23514441]
[1743217526514,4.165e-05,127.38,127.37,30.23514441]
[1743217526723,4.3184,127.46,127.37,416.62048882]
[1743217526919,32.30066168,127.51,127.43,22.38024441]
[1743217526920,4.2488,127.5,127.43,22.38024441]
[1743217527120,8.5672,127.5,127.44,31.76]
[1743217527315,24.2872,127.5,127.44,31.76]
[1743217527516,10.84,127.49,127.44,31.76]
[1743217527718,10.84,127.49,127.46,0.05776475]
[1743217527915,26.56,127.49,127.44,31.76]
[1743217528715,26.56,127.49,127.42,31.72]
[1743217529113,7.8499,127.46,127.44,0.05770937]
[1743217529318,0.05408127,127.47,127.44,0.05770937]
[1743217529624,15.77408127,127.47,127.45,31.74]
[1743217530525,23.62328127,127.47,127.45,31.74]
[1743217530826,0.05408127,127.47,127.39,31.7]
[1743217531026,7.8515,127.43,127.39,31.7]
[1743217531217,48.57,127.46,127.39,31.7]
[1743217531413,64.29,127.46,127.39,54.08024441]
[1743217531926,0.05472822,127.44,127.41,0.05976159]
[1743217532425,15.77472822,127.44,127.41,0.05976159]
[1743217532626,15.77472822,127.44,127.42,31.74]
[1743217533426,23.62572822,127.44,127.42,31.74]
[1743217534228,15.77472822,127.44,127.42,31.74]
[1743217534926,23.62572822,127.44,127.42,31.74]
[1743217536738,15.77472822,127.44,127.42,31.74]
[1743217537033,48.57,127.46,127.43,22.38024441]
[1743217537734,48.57,127.46,127.45,22.38024441]
[1743217537934,10.84,127.49,127.45,53.96024441]
[1743217538328,0.05249237,127.48,127.47,22.38024441]
[1743217538534,0.05249237,127.48,127.47,53.96024441]
[1743217539125,0.05249237,127.48,127.47,61.80894441]
[1743217539428,7.8463,127.51,127.47,61.80894441]
[1743217539629,23.5663,127.51,127.47,61.80894441]
[1743217540232,7.8469,127.5,127.47,53.96024441]
[1743217541330,7.8465,127.51,127.47,61.80894441]
[1743217541631,23.9381,127.56,127.48,0.05647672]
[1743217541937,18.6666,127.51,127.47,61.80854441]
[1743217542329,26.54,127.51,127.48,7.901227]
[1743217543235,34.3864,127.51,127.48,0.053527]
[1743217545228,7.847,127.5,127.48,0.053527]
[1743217545530,26.54,127.51,127.48,0.053527]
[1743217545739,7.8475,127.49,127.48,0.053527]
[1743217546241,26.54,127.51,127.44,15.64]
[1743217546242,33.20024441,127.51,127.44,15.64]
[1743217546432,7.8499,127.45,127.44,2.4754]
[1743217546633,7.8499,127.45,127.41,31.36]
[1743217546830,7.8499,127.45,127.41,53.74024441]
[1743217547233,0.05543498,127.44,127.42,0.05076875]
[1743217547635,10.82,127.51,127.43,22.38024441]
[1743217547937,7.8479,127.49,127.46,22.38024441]
[1743217548140,7.8479,127.49,127.47,31.38]
[1743217548637,7.8471,127.5,127.47,31.38]
[1743217548839,7.8471,127.5,127.47,31.43931157]
[1743217550129,7.8471,127.5,127.47,39.28791157]
[1743217550330,18.6666,127.51,127.47,31.43931157]
[1743217550726,18.6666,127.51,127.48,7.848]
[1743217550931,18.6666,127.51,127.47,31.43931157]
[1743217551240,18.6666,127.51,127.48,7.8479]
[1743217551441,10.82,127.51,127.47,31.43931157]
[1743217552238,10.82,127.51,127.49,7.8471]
[1743217552437,10.82,127.51,127.5,31.26]
[1743217552738,7.8456,127.52,127.5,31.26]
[1743217552936,7.8462,127.51,127.5,31.26]
[1743217553139,7.8462,127.51,127.5,31.31075224]
[1743217556748,10.81,127.53,127.5,0.05075224]
[1743217557043,10.81,127.53,127.5,31.13075224]
[1743217557834,7.846,127.52,127.5,31.13075224]
[1743217558644,7.8462,127.51,127.5,31.13075224]
[1743217561551,7.8482,127.48,127.44,281.24024441]
[1743217561740,7.8482,127.48,127.45,30.96]
[1743217562742,7.90555643,127.48,127.45,31.0188775]
[1743217563451,7.90555643,127.48,127.45,38.8686775]
[1743217563751,7.90555643,127.48,127.45,31.0188775]
[1743217564548,0.05735643,127.48,127.45,38.8684775]
[1743217565752,10.81,127.53,127.46,22.38024441]
[1743217565945,10.81,127.53,127.48,22.38024441]
[1743217566145,10.81,127.53,127.5,7.8465]
[1743217566651,10.81,127.53,127.49,38.7072]
[1743217566847,10.81,127.53,127.5,0.04973547]
[1743217567240,10.81,127.53,127.5,7.89623547]
[1743217567853,10.81,127.53,127.5,0.04973547]
[1743217568256,10.81,127.53,127.48,30.82]
[1743217568757,18.6551,127.53,127.48,44.76953694]
[1743217568949,18.6551,127.53,127.48,30.82]
[1743217569454,0.05116452,127.52,127.49,0.0543054]
[1743217570649,0.05116452,127.52,127.49,7.9013054]
[1743217571157,7.89696452,127.52,127.49,7.9013054]
[1743217571455,0.05116452,127.52,127.5,7.8467]
[1743217571759,0.05116452,127.52,127.51,30.76]
[1743217573656,10.81,127.53,127.51,53.07666358]
[1743217573862,47.23,127.55,127.54,7.8444]
[1743217574159,43.07281965,127.6,127.54,30.74]
[1743217574755,43.07281965,127.6,127.56,0.05959604]
[1743217574955,43.07281965,127.6,127.57,30.76]
[1743217576956,7.8419,127.58,127.57,30.76]
[1743217577256,50.91281965,127.6,127.56,0.05959604]
[1743217577456,43.07281965,127.6,127.56,0.05959604]
[1743217577652,30.60466358,127.61,127.56,0.05959604]
[1743217577958,7.8417,127.59,127.56,0.05959604]
[1743217579054,7.8421,127.58,127.56,0.05959604]
[1743217579261,8.288,127.61,127.56,0.05959604]
[1743217579655,30.7,127.6,127.56,0.05959604]
[1743217580762,7.8425,127.57,127.56,0.05959604]
[1743217581359,8.288,127.61,127.56,0.05959604]
[1743217581961,7.8411,127.6,127.56,0.05959604]
[1743217582859,7.8414,127.59,127.56,0.05959604]
[1743217583768,7.8409,127.6,127.56,7.90259604]
[1743217584670,16.1283,127.61,127.57,7.8425]
[1743217584862,8.288,127.61,127.56,0.05959604]
[1743217585166,16.1285,127.61,127.57,7.8424]
[1743217585361,8.288,127.61,127.57,7.8424]
[1743217585569,8.288,127.61,127.56,0.05959604]
[1743217587274,7.8425,127.57,127.56,0.05959604]
[1743217587570,8.288,127.61,127.56,0.05959604]
[1743217587765,7.8416,127.59,127.56,0.05959604]
[1743217588673,7.842,127.58,127.56,0.05959604]
[1743217589274,8.288,127.61,127.56,0.05959604]
[1743217589876,7.8425,127.58,127.56,0.05959604]
[1743217590870,8.288,127.61,127.56,0.05959604]
[1743217591380,7.8424,127.58,127.56,0.05959604]
[1743217591782,8.288,127.61,127.56,0.05959604]
[1743217592079,258.8,127.64,127.58,13.93626159]
[1743217592277,22.39396159,127.66,127.58,52.19776159]
[1743217592479,7.8399,127.62,127.6,0.05996839]
[1743217592874,37.32,127.65,127.61,30.4]
[1743217593068,7.8387,127.64,127.61,30.4]
[1743217593475,37.32,127.65,127.61,30.4]
[1743217593782,7.8384,127.64,127.61,30.4]
[1743217594173,37.32,127.65,127.61,30.4]
[1743217594382,7.8395,127.62,127.61,30.4]
[1743217595176,7.8401,127.61,127.6,0.05996839]
[1743217595380,30.36,127.65,127.6,0.05996839]
[1743217596480,7.8398,127.62,127.6,0.05996839]
[1743217597586,7.8401,127.61,127.6,0.05996839]
[1743217601988,13.93626159,127.64,127.57,30.2]
[1743217602483,7.8419,127.58,127.57,30.2]
[1743217603296,0.05352316,127.59,127.56,0.05731116]
[1743217603686,7.8425,127.57,127.56,0.05731116]
[1743217603887,0.05352316,127.59,127.56,0.05731116]
[1743217604397,0.05352316,127.59,127.57,30.18]
[1743217604997,7.8419,127.58,127.57,30.18]
[1743217605592,7.8419,127.58,127.44,13.93626159]
[1743217605593,7.84,127.58,127.5,13.93626159]
[1743217605801,18.26596159,127.57,127.5,30.2]
[1743217606697,7.8456,127.53,127.5,30.2]
[1743217606900,0.05933996,127.55,127.52,0.05637985]
[1743217607098,0.05933996,127.55,127.53,30.18]
[1743217607699,7.8444,127.54,127.53,30.18]
[1743217608095,0.05933996,127.55,127.53,30.18]
[1743217608292,7.8444,127.54,127.53,30.18]
[1743217610203,0.05933996,127.55,127.52,0.05637985]
[1743217610204,7.845,127.53,127.52,0.05637985]
[1743217610506,13.93626159,127.53,127.47,30.16]
[1743217610903,7.8485,127.48,127.47,30.16]
[1743217611305,4.2695,127.52,127.47,30.16]
[1743217611605,0.05979432,127.49,127.47,30.16]
[1743217612105,7.8454,127.53,127.48,13.93626159]
[1743217613012,7.8456,127.52,127.48,13.93626159]
[1743217613307,0.05487811,127.51,127.49,0.057741]
[1743217613509,0.05487811,127.51,127.5,30.12]
[1743217613909,0.05487811,127.51,127.49,0.057741]
[1743217615309,7.8469,127.5,127.49,0.057741]
[1743217616808,310.26652611,127.49,127.36,7.8553]
[1743217617003,13.93626159,127.45,127.36,13.93626159]
[1743217617202,7.851,127.44,127.38,13.93626159]
[1743217617403,7.851,127.44,127.38,21.79006159]
[1743217617616,17.98096159,127.49,127.4,13.93626159]
[1743217617812,7.8495,127.46,127.4,44.49626159]
[1743217618008,0.04994156,127.46,127.43,0.05006473]
[1743217618205,0.04994156,127.46,127.44,13.93626159]
[1743217619013,0.04994156,127.46,127.43,30.63006473]
[1743217619711,0.04994156,127.46,127.43,0.05006473]
[1743217620718,7.8505,127.44,127.43,0.05006473]
[1743217623318,7.8505,127.44,127.43,6.473e-05]
[1743217624818,7.84,127.44,127.33,4.3189]
[1743217625008,22.33398022,127.42,127.34,30.52]
[1743217625212,4.3669,127.41,127.34,30.52]
[1743217625715,4.0745,127.43,127.34,57.05938022]
[1743217626119,4.0745,127.43,127.37,0.05564681]
[1743217626120,0.05241475,127.4,127.37,0.05564681]
[1743217626316,0.05241475,127.4,127.38,30.52]
[1743217627519,7.90581475,127.4,127.38,30.52]
[1743217627817,0.05241475,127.4,127.38,30.52]
[1743217628320,7.90551475,127.4,127.38,30.52]
[1743217628620,0.05241475,127.4,127.38,30.52]
[1743217629415,0.05241475,127.4,127.38,4.22875595]
[1743217629824,7.90541475,127.4,127.38,4.22875595]
[1743217630923,0.05241475,127.4,127.38,4.22875595]
[1743217631221,28.93188567,127.42,127.39,30.4]
[1743217631419,28.93188567,127.42,127.4,22.33398022]
[1743217631621,15.76368567,127.42,127.4,26.42478022]
[1743217632230,10.77215797,127.46,127.4,34.26478022]
[1743217632431,0.05881212,127.42,127.4,26.48333656]
[1743217632631,10.77215797,127.46,127.44,7.8502]
[1743217632829,10.77215797,127.46,127.45,30.4]
[1743217633423,10.77215797,127.46,127.45,38.2499]
[1743217633632,58.68154051,127.47,127.45,38.24]
[1743217633925,85.84555173,127.48,127.45,38.24]
[1743217633926,85.84555173,127.48,127.47,7.8487]
[1743217634627,10.75311906,127.51,127.49,7.8473]
[1743217634822,10.75311906,127.51,127.5,30.38]
[1743217635025,10.80645679,127.51,127.5,30.38]
[1743217635225,10.80645679,127.51,127.5,38.2269]
[1743217635425,10.80645679,127.51,127.5,30.38]
[1743217636724,0.05333773,127.51,127.5,30.38]
[1743217636921,7.89953773,127.51,127.5,30.38]
[1743217637122,0.05333773,127.51,127.4,22.33398022]
[1743217637323,30.36,127.5,127.41,30.36]
[1743217637624,22.33398022,127.52,127.41,30.36]
[1743217638323,0.05206543,127.48,127.45,0.05577115]
[1743217638522,0.05206543,127.48,127.46,30.36]
[1743217638723,30.38,127.53,127.46,30.36]
[1743217639037,26.92544301,127.52,127.46,30.36]
[1743217639334,0.05692141,127.51,127.48,0.05880878]
[1743217640236,7.8475,127.49,127.48,0.05880878]
[1743217640729,0.05692141,127.51,127.48,0.05880878]
[1743217640934,0.05692141,127.51,127.49,30.44]
[1743217641335,7.8469,127.5,127.49,30.44]
[1743217641529,0.05692141,127.51,127.49,30.44]
[1743217642335,0.05692141,127.51,127.49,38.2874]
[1743217642731,0.05692141,127.51,127.49,30.44]
[1743217644340,0.05692141,127.51,127.49,38.287]
[1743217644733,0.05692141,127.51,127.49,30.44]
[1743217644937,0.00892141,127.51,127.5,7.8469]
[1743217645137,0.00892141,127.51,127.5,30.18088022]
[1743217645737,125.41686997,127.56,127.54,7.8443]
[1743217645934,125.41686997,127.56,127.54,38.2043]
[1743217646446,125.41686997,127.56,127.54,30.36]
[1743217646841,125.47495133,127.56,127.54,30.40984811]
[1743217647145,0.05808136,127.56,127.54,30.40984811]
[1743217650648,0.05808136,127.56,127.54,38.25404811]
[1743217650848,0.05808136,127.56,127.54,30.40984811]
[1743217652250,0.05808136,127.56,127.54,38.25414811]
[1743217652446,0.05808136,127.56,127.54,30.40984811]
[1743217654051,0.05808136,127.56,127.54,0.04984811]
[1743217654248,7.8438,127.55,127.54,0.04984811]
[1743217658052,0.05808136,127.56,127.54,0.04984811]
[1743217658859,0.05808136,127.56,127.55,30.12]
[1743217659961,0.05808136,127.56,127.55,37.9638]
[1743217662264,0.05808136,127.56,127.55,60.27450005]
[1743217662961,0.05808136,127.56,127.55,30.12]
[1743217663461,7.90128136,127.56,127.55,30.12]
[1743217664767,7.8438,127.55,127.54,0.04984811]
[1743217665157,12.2162,127.55,127.54,0.04984811]
[1743217667162,12.2162,127.55,127.49,7.8472]
[1743217667163,4.3724,127.55,127.46,4.1125]
[1743217667363,4.3724,127.55,127.47,29.98]
[1743217667764,4.3724,127.55,127.48,30.0]
[1743217668074,22.31070005,127.53,127.41,26.42320005]
[1743217668363,22.36835224,127.53,127.45,7.8499]
[1743217668568,54.75767009,127.53,127.46,0.05972653]
[1743217668764,7.8486,127.48,127.46,0.05972653]
[1743217670363,0.05658437,127.5,127.46,0.05972653]
[1743217670971,32.50355441,127.5,127.48,7.8477]
[1743217671172,32.50355441,127.5,127.48,37.8077]
[1743217673172,0.05658437,127.5,127.48,37.8077]
[1743217675675,0.05658437,127.5,127.48,29.96]
[1743217676078,0.05658437,127.5,127.46,29.89972653]
[1743217676778,7.8487,127.47,127.46,29.89972653]
[1743217677476,7.8487,127.47,127.46,0.05972653]
[1743217678575,3.989,127.49,127.46,14.0114024]
[1743217678776,0.05658437,127.5,127.46,14.0114024]
[1743217679169,0.05658437,127.5,127.49,7.8475]
[1743217679377,0.05658437,127.5,127.49,37.6475]
[1743217679568,118.34910614,127.5,127.49,37.6475]
[1743217681375,0.05658437,127.5,127.49,37.6475]
[1743217681975,0.05658437,127.5,127.49,29.8]
[1743217682681,0.05658437,127.5,127.49,37.6475]
[1743217682880,0.05658437,127.5,127.49,29.8]
[1743217683474,0.05658437,127.5,127.46,0.05972653]
[1743217683475,0.05658437,127.5,127.47,29.74]
[1743217683684,0.05658437,127.5,127.46,0.05972653]
[1743217683981,22.37544705,127.5,127.39,22.31886268]
[1743217684177,22.31886268,127.48,127.4,29.78]
[1743217684380,4.3333,127.47,127.4,29.78]
[1743217685181,0.05663433,127.45,127.42,0.05882932]
[1743217686385,7.8512,127.43,127.42,0.05882932]
[1743217687891,0.05663433,127.45,127.38,29.74]
[1743217688185,22.31886268,127.46,127.36,7.8552]
[1743217688373,22.31886268,127.46,127.37,29.74]
[1743217688786,22.31886268,127.42,127.33,258.78]
[1743217689082,22.31886268,127.4,127.28,31.9761542]
[1743217689286,29.78,127.39,127.36,0.05914843]
[1743217689584,29.78,127.39,127.32,29.8]
[1743217689585,0.05845532,127.39,127.32,29.8]
[1743217689788,33.8644,127.41,127.36,0.05973576]
[1743217690082,0.05008293,127.37,127.33,29.8]
[1743217690394,52.13886268,127.38,127.22,364.0]
[1743217690688,22.31886268,127.36,127.26,29.82]
[1743217690879,34.2295,127.35,127.27,1.57146224]
[1743217691080,4.3895,127.35,127.27,1.57146224]
[1743217691381,4.3895,127.35,127.3,0.05376847]
[1743217691382,0.05994887,127.32,127.3,0.05376847]
[1743217691580,0.05994887,127.32,127.31,1.5709685]
[1743217691779,0.05994887,127.32,127.31,9.4295685]
[1743217692185,12.2432,127.39,127.31,1.5709685]
[1743217692389,4.3895,127.39,127.31,1.5709685]
[1743217692583,4.3895,127.39,127.32,22.31886268]
[1743217692783,4.3895,127.39,127.33,29.86]
[1743217693087,4.1078,127.41,127.36,7.8554]
[1743217693288,4.1078,127.41,127.36,29.86]
[1743217693586,22.36852183,127.4,127.31,29.88]
[1743217693780,22.31886268,127.38,127.31,29.88]
[1743217693978,4.0135,127.37,127.31,29.88]
[1743217694578,4.1078,127.41,127.32,22.31886268]
[1743217694776,0.05249074,127.35,127.33,0.05716275]
[1743217694981,8.1213,127.41,127.34,52.21886268]
[1743217695180,8.1213,127.41,127.35,29.92]
[1743217695382,0.05369821,127.39,127.35,29.92]
[1743217695787,0.05369821,127.39,127.36,0.05756918]
[1743217695978,7.8549,127.37,127.36,0.05756918]
[1743217696179,0.05369821,127.39,127.35,29.92]
[1743217696388,0.05369821,127.39,127.32,29.92]
[1743217696690,22.31886268,127.4,127.32,29.92]
[1743217697088,22.31886268,127.38,127.3,29.92]
[1743217697585,0.05717156,127.35,127.33,0.05775956]
[1743217697791,7.8586,127.31,127.3,29.92]
[1743217698492,7.8582,127.32,127.3,29.92]
[1743217698883,0.05136716,127.32,127.3,29.97735337]
[1743217700191,7.8586,127.31,127.3,29.97735337]
[1743217700593,0.05136716,127.32,127.3,37.83615337]
[1743217701294,0.05136716,127.32,127.31,7.8586]
[1743217701599,0.05136716,127.32,127.3,29.97735337]
[1743217702690,0.05136716,127.32,127.3,37.83635337]
[1743217703096,0.05136716,127.32,127.3,29.97735337]
[1743217703395,0.05136716,127.32,127.31,7.8586]
[1743217704997,0.05136716,127.32,127.3,20.30064489]
[1743217705193,0.05136716,127.32,127.3,42.61950757]
[1743217705399,10.81851382,127.36,127.3,42.61950757]
[1743217706100,10.81851382,127.37,127.3,42.61950757]
[1743217706397,7.91446532,127.35,127.31,7.8582]
[1743217706802,0.05796532,127.35,127.32,0.05154319]
[1743217707007,7.8578,127.33,127.29,29.78]
[1743217707199,7.8578,127.33,127.32,0.04958079]
[1743217709096,44.73597509,127.34,127.32,0.04958079]
[1743217709394,44.73597509,127.34,127.33,29.78]
[1743217709593,44.73597509,127.34,127.33,29.71163701]
[1743217710705,44.73597509,127.34,127.32,0.04958079]
[1743217711496,44.73597509,127.34,127.33,7.8573]
[1743217711897,44.73597509,127.34,127.32,0.04958079]
[1743217712699,44.73597509,127.34,127.33,7.8573]
[1743217712906,44.73597509,127.34,127.32,0.04958079]